fUSD/lending_fUSD_20250417
["ID","MTS","AMOUNT","RATE_DAILY","PERIOD"]
[358241998,1744867854738,-757.46336789,0.00052324,64]
[358241999,1744867854747,-385879.70490985,0.00052325,64]
[358242000,1744867855441,-151.0,0.00050008,30]
[358242001,1744867855450,-151.0,0.00050008,30]
[358242002,1744867855460,-500.0,0.00052054,120]
[358242003,1744867855471,-417.579424,0.00052264,120]
[358242004,1744867855481,-154.927829,0.00052264,120]
[358242005,1744867855491,-417.579424,0.00052296,120]
[358242006,1744867855501,-417.579424,0.00052296,120]
[358242007,1744867855511,-417.579424,0.00052301,120]
[358242008,1744867855522,-417.579424,0.00052323,120]
[358242009,1744867855532,-5497.22882782,0.00052325,64]
[358242010,1744867855560,-543.86894405,0.00052325,64]
[358242011,1744867855571,-1416.38121683,0.00052325,64]
[358242012,1744867855587,-3982.27193224,0.00052325,64]
[358242013,1744867899019,354.0,0.000265,120]
[358242015,1744868318363,-191.2601,0.0005,120]
[358242016,1744868339806,-158.31,0.00024932,2]
[358242017,1744868646509,-200.0,0.00029999,30]
[358242018,1744868733267,-300.0,0.00029999,2]
[358242019,1744868733290,-19700.0,0.0003,7]
[358242020,1744868734290,-421.405,0.0003,7]
[358242021,1744868763710,-29.595,0.0003,7]
[358242022,1744868763744,-120.405,0.00033,2]
[358242023,1744868808120,-129.595,0.00033,2]
[358242024,1744868808143,-158.31,0.00043607,2]
[358242025,1744868808166,-84.92521903,0.00047245,2]
[358242026,1744868829088,-405.49889553,0.00047245,2]
[358242027,1744868853086,-772.24098544,0.00047245,2]
[358242028,1744868853109,-604.78322683,0.00047346,2]
[358242063,1744869032125,-1203.38732329,0.00044195,120]
[358242064,1744869032136,-156.52426446,0.00047346,2]
[358242065,1744869032146,-152.0,0.00048585,3]
[358242066,1744869032156,-628.62,0.00048682,2]
[358242067,1744869032166,-563.82582,0.00049684,4]
[358242068,1744869032175,-2000.0,0.000499,2]
[358242069,1744869032184,-664.7399,0.0005,120]
[358242070,1744869032194,-2106.53655396,0.0005,120]
[358242071,1744869032205,-7893.82252297,0.0005,120]
[358242072,1744869032215,-153.0,0.00050138,60]
[358242073,1744869032225,-153.0,0.00050138,60]
[358242074,1744869032234,-153.0,0.00050138,60]
[358242075,1744869032248,-282.05,0.00050513,120]
[358242076,1744869032257,-151.0,0.0005054,30]
[358242077,1744869032267,-278.7,0.0005054,30]
[358242078,1744869032276,-151.0,0.00050543,30]
[358242079,1744869032286,-151.0,0.00050545,30]
[358242080,1744869032297,-1000.0,0.00050673,120]
[358242081,1744869032307,-3053.13,0.00050847,2]
[358242082,1744869032317,-628.62,0.00050946,2]
[358242083,1744869032328,-150.32,0.00051058,120]
[358242084,1744869032338,-203.84,0.00051185,2]
[358242085,1744869032347,-1558.88,0.0005123,2]
[358242086,1744869032357,-338.44,0.00051954,2]
[358242087,1744869032366,-1979.02151642,0.00051954,15]
[358242088,1744869032375,-1388.70837742,0.00051954,24]
[358242089,1744869032384,-856.0,0.00052,120]
[358242090,1744869032394,-470.32349008,0.00052,120]
[358242091,1744869032403,-2000.0,0.00052,120]
[358242092,1744869032413,-500.0,0.00052,120]
[358242093,1744869032423,-500.0,0.00052,120]
[358242094,1744869032432,-4220.46415323,0.00052044,4]
[358242095,1744869032443,-992.32608986,0.00052044,4]
[358242096,1744869032454,-1397.7819348,0.00052044,4]
[358242097,1744869032465,-2441.56500959,0.00052044,4]
[358242098,1744869032476,-5201.8355525,0.00052044,4]
[358242099,1744869032488,-1617.5918039,0.00052044,4]
[358242100,1744869032511,-684.22367525,0.00052044,4]
[358242101,1744869032523,-1324.93873602,0.00052044,4]
[358242102,1744869032535,-18269.8172814,0.00052044,4]
[358242103,1744869032547,-4143.33194773,0.00052044,4]
[358242104,1744869032559,-650.74662834,0.00052044,4]
[358242110,1744869038173,-475.77,0.00045679,7]
[358242111,1744869038183,-3213.476667,0.00052044,4]
[358242112,1744869038285,-1734.95654738,0.00052044,4]
[358242113,1744869038298,-418.035,0.00052044,4]
[358242163,1744869040295,-4124.09701614,0.00052044,4]
[358242164,1744869040364,-572.84026773,0.00052044,4]
[358242165,1744869040375,-264.7628,0.00052044,4]
[358242167,1744869042850,-36185.62923623,0.00052044,4]
[358242168,1744869042859,-530.96,0.00052044,2]
[358242169,1744869042868,-150.0,0.00052044,4]
[358242170,1744869042878,-760.908,0.00052053,95]
[358242171,1744869042887,-500.0,0.00052053,120]
[358242172,1744869042896,-280.49400063,0.00052053,120]
[358242173,1744869042906,-500.0,0.00052054,120]
[358242174,1744869042915,-500.0,0.00052054,120]
[358242176,1744869042925,-500.0,0.00052054,120]
[358242178,1744869042934,-500.0,0.00052054,120]
[358242180,1744869042943,-1404.7,0.00052054,120]
[358242182,1744869042952,-524.93,0.00052054,120]
[358242185,1744869042961,-2660.29,0.00052054,120]
[358242186,1744869042971,-685.64,0.00052054,120]
[358242187,1744869042980,-150.0,0.00052054,10]
[358242188,1744869042989,-500.0,0.00052054,120]
[358242189,1744869042998,-500.0,0.00052054,120]
[358242190,1744869043007,-500.0,0.00052054,120]
[358242191,1744869043016,-500.0,0.00052054,120]
[358242192,1744869043026,-500.0,0.00052054,120]
[358242193,1744869043035,-500.0,0.00052054,120]
[358242194,1744869043044,-500.0,0.00052054,120]
[358242197,1744869043054,-500.0,0.00052054,120]
[358242199,1744869043063,-500.0,0.00052054,120]
[358242201,1744869043073,-164.7089956,0.00052054,120]
[358242202,1744869043083,-924.3,0.00052054,120]
[358242203,1744869043093,-500.0,0.00052054,120]
[358242204,1744869043102,-500.0,0.00052054,120]
[358242205,1744869043112,-500.0,0.00052054,120]
[358242206,1744869043121,-500.0,0.00052054,120]
[358242207,1744869043130,-500.0,0.00052054,120]
[358242208,1744869043139,-500.0,0.00052054,120]
[358242209,1744869043148,-697.43,0.00052054,2]
[358242210,1744869043160,-1019.48,0.00052054,120]
[358242211,1744869043169,-587.82,0.00052054,120]
[358242212,1744869043178,-500.0,0.00052054,120]
[358242213,1744869043187,-170.72460637,0.00052054,120]
[358242214,1744869043196,-500.0,0.00052054,120]
[358242215,1744869043206,-500.0,0.00052054,120]
[358242216,1744869043215,-500.0,0.00052054,120]
[358242217,1744869043224,-500.0,0.00052054,120]
[358242218,1744869043234,-500.0,0.00052054,120]
[358242219,1744869043244,-500.0,0.00052054,120]
[358242220,1744869043258,-500.0,0.00052054,120]
[358242221,1744869043268,-573.39506616,0.00052054,120]
[358242222,1744869043277,-500.0,0.00052054,120]
[358242223,1744869043287,-694.94,0.00052054,120]
[358242224,1744869043298,-500.0,0.00052054,120]
[358242225,1744869043307,-548.61,0.00052054,120]
[358242226,1744869043317,-500.0,0.00052054,120]
[358242227,1744869043327,-500.0,0.00052054,120]
[358242228,1744869043336,-500.0,0.00052054,120]
[358242229,1744869043346,-500.0,0.00052054,120]
[358242230,1744869043355,-648.21,0.00052054,120]
[358242231,1744869043364,-500.0,0.00052054,120]
[358242232,1744869043374,-558.60125942,0.00052054,120]
[358242233,1744869043383,-500.0,0.00052054,120]
[358242234,1744869043393,-737.56,0.00052054,120]
[358242235,1744869043402,-565.57,0.00052054,120]
[358242236,1744869043411,-628.15,0.00052054,120]
[358242237,1744869043420,-500.0,0.00052054,120]
[358242238,1744869043430,-500.0,0.00052054,120]
[358242239,1744869043439,-892.85,0.00052054,120]
[358242240,1744869043449,-500.0,0.00052054,120]
[358242241,1744869043458,-500.0,0.00052054,120]
[358242242,1744869043468,-500.0,0.00052054,120]
[358242243,1744869043477,-780.24,0.00052054,120]
[358242244,1744869043488,-500.0,0.00052054,120]
[358242245,1744869043498,-500.0,0.00052054,120]
[358242246,1744869043507,-2149.2,0.00052054,120]
[358242247,1744869043516,-500.0,0.00052054,120]
[358242248,1744869043526,-500.0,0.00052054,120]
[358242249,1744869043535,-500.0,0.00052054,120]
[358242250,1744869043545,-1800.18,0.00052054,120]
[358242251,1744869043554,-500.0,0.00052054,120]
[358242252,1744869043563,-1753.54,0.00052054,120]
[358242253,1744869043573,-500.0,0.00052054,120]
[358242254,1744869043582,-1918.58,0.00052054,120]
[358242255,1744869043592,-744.04,0.00052054,120]
[358242256,1744869043602,-500.0,0.00052054,120]
[358242257,1744869043612,-500.0,0.00052054,120]
[358242258,1744869043621,-500.0,0.00052054,120]
[358242259,1744869043631,-500.0,0.00052054,120]
[358242260,1744869043641,-500.0,0.00052054,120]
[358242261,1744869043650,-726.7,0.00052054,120]
[358242262,1744869043660,-579.85,0.00052054,120]
[358242263,1744869043669,-500.0,0.00052054,2]
[358242265,1744869043679,-500.0,0.00052054,120]
[358242267,1744869043688,-504.43690969,0.00052054,120]
[358242269,1744869043697,-500.0,0.00052054,120]
[358242271,1744869043707,-500.0,0.00052054,120]
[358242273,1744869043716,-718.65,0.00052054,120]
[358242275,1744869043726,-500.0,0.00052054,120]
[358242277,1744869043735,-796.14,0.00052054,120]
[358242279,1744869043745,-1064.75,0.00052054,35]
[358242281,1744869043755,-709.2,0.00052054,120]
[358242283,1744869043765,-540.46,0.00052054,120]
[358242285,1744869043775,-1403.76,0.00052054,120]
[358242287,1744869043786,-500.0,0.00052054,120]
[358242289,1744869043795,-1134.44,0.00052054,120]
[358242291,1744869043805,-1063.64,0.00052054,120]
[358242293,1744869043815,-500.0,0.00052054,2]
[358242295,1744869043826,-1521.57,0.00052054,120]
[358242297,1744869043836,-500.0,0.00052054,120]
[358242299,1744869043845,-500.0,0.00052054,120]
[358242301,1744869043855,-534.53,0.00052054,120]
[358242303,1744869043865,-1255.12,0.00052054,120]
[358242305,1744869043875,-1182.52,0.00052054,120]
[358242307,1744869043884,-500.0,0.00052054,120]
[358242308,1744869043895,-604.82,0.00052054,120]
[358242309,1744869043904,-500.0,0.00052054,120]
[358242310,1744869043914,-500.0,0.00052054,120]
[358242311,1744869043923,-500.0,0.00052054,120]
[358242312,1744869043933,-1061.75,0.00052054,120]
[358242313,1744869043942,-507.15,0.00052054,120]
[358242314,1744869043952,-500.0,0.00052054,120]
[358242315,1744869043962,-500.0,0.00052054,120]
[358242316,1744869043971,-500.0,0.00052054,120]
[358242317,1744869043980,-2213.94,0.00052054,120]
[358242318,1744869043989,-500.0,0.00052054,120]
[358242319,1744869043998,-500.0,0.00052054,120]
[358242320,1744869044007,-500.0,0.00052054,120]
[358242321,1744869044017,-555.14,0.00052054,120]
[358242322,1744869044027,-500.0,0.00052054,120]
[358242323,1744869044036,-500.0,0.00052054,120]
[358242324,1744869044046,-500.0,0.00052054,120]
[358242325,1744869044055,-500.0,0.00052054,120]
[358242326,1744869044065,-500.0,0.00052054,120]
[358242327,1744869044074,-500.0,0.00052054,120]
[358242328,1744869044083,-500.0,0.00052054,120]
[358242329,1744869044093,-870.67,0.00052054,120]
[358242330,1744869044102,-500.0,0.00052054,120]
[358242331,1744869044112,-1165.58,0.00052054,120]
[358242332,1744869044122,-802.62,0.00052054,120]
[358242333,1744869044131,-728.39,0.00052054,120]
[358242334,1744869044141,-1533.98,0.00052054,120]
[358242335,1744869044151,-963.73,0.00052054,120]
[358242336,1744869044160,-500.0,0.00052054,120]
[358242337,1744869044170,-177.76870083,0.00052054,120]
[358242338,1744869044179,-500.0,0.00052054,120]
[358242339,1744869044189,-500.0,0.00052054,120]
[358242340,1744869044198,-955.45,0.00052054,120]
[358242341,1744869044207,-500.0,0.00052054,120]
[358242342,1744869044217,-500.0,0.00052054,120]
[358242343,1744869044226,-500.0,0.00052054,120]
[358242344,1744869044236,-1002.01,0.00052054,120]
[358242345,1744869044245,-933.05,0.00052054,120]
[358242346,1744869044259,-500.0,0.00052054,120]
[358242347,1744869044269,-500.0,0.00052054,120]
[358242348,1744869044279,-1218.13,0.00052054,120]
[358242349,1744869044288,-500.0,0.00052054,120]
[358242350,1744869044299,-500.0,0.00052054,120]
[358242351,1744869044309,-825.36,0.00052054,120]
[358242352,1744869044318,-1620.81,0.00052054,120]
[358242353,1744869044328,-500.0,0.00052054,120]
[358242354,1744869044338,-637.31,0.00052054,120]
[358242355,1744869044347,-530.95,0.00052054,120]
[358242356,1744869044356,-500.0,0.00052054,120]
[358242357,1744869044366,-500.0,0.00052054,120]
[358242358,1744869044376,-217.54094,0.00052054,120]
[358242359,1744869044385,-601.29524987,0.00052054,120]
[358242360,1744869044395,-500.0,0.00052054,120]
[358242361,1744869044404,-579.75,0.00052054,120]
[358242362,1744869044414,-4696.74,0.00052054,120]
[358242363,1744869044424,-1064.94,0.00052054,120]
[358242364,1744869044442,-1596.43,0.00052054,120]
[358242365,1744869044453,-500.0,0.00052054,120]
[358242366,1744869044463,-1071.76,0.00052054,120]
[358242367,1744869044472,-1037.25,0.00052054,30]
[358242368,1744869044484,-500.0,0.00052054,120]
[358242369,1744869044493,-500.0,0.00052054,120]
[358242370,1744869044504,-500.0,0.00052054,120]
[358242371,1744869044513,-1591.55,0.00052054,120]
[358242372,1744869044523,-500.0,0.00052054,120]
[358242373,1744869044533,-1622.7,0.00052054,120]
[358242374,1744869044543,-500.0,0.00052054,120]
[358242375,1744869044552,-1494.5,0.00052054,120]
[358242376,1744869044563,-463.904035,0.00052054,120]
[358242377,1744869044572,-1010.57,0.00052054,120]
[358242378,1744869044582,-500.0,0.00052054,120]
[358242379,1744869044592,-500.0,0.00052054,120]
[358242380,1744869044602,-696.04,0.00052054,120]
[358242381,1744869044612,-1280.93,0.00052054,120]
[358242382,1744869044622,-1021.25,0.00052054,120]
[358242383,1744869044632,-789.46,0.00052054,120]
[358242384,1744869044642,-500.0,0.00052054,30]
[358242385,1744869044652,-784.27,0.00052054,120]
[358242386,1744869044663,-865.52,0.00052054,120]
[358242387,1744869044673,-1079.45,0.00052054,120]
[358242388,1744869044683,-1610.83,0.00052054,120]
[358242389,1744869044693,-168.462309,0.00052054,120]
[358242390,1744869044704,-500.0,0.00052054,120]
[358242391,1744869044714,-500.0,0.00052054,120]
[358242392,1744869044724,-519.82,0.00052054,120]
[358242393,1744869044734,-500.0,0.00052054,120]
[358242394,1744869044744,-719.48,0.00052054,120]
[358242395,1744869044754,-680.15,0.00052054,120]
[358242396,1744869044764,-156.987081,0.00052054,120]
[358242397,1744869044774,-500.0,0.00052054,120]
[358242398,1744869044784,-677.14,0.00052054,120]
[358242399,1744869044794,-500.0,0.00052054,120]
[358242400,1744869044804,-500.0,0.00052054,120]
[358242401,1744869044813,-500.0,0.00052054,120]
[358242402,1744869044824,-604.6,0.00052054,120]
[358242403,1744869044834,-500.0,0.00052054,120]
[358242404,1744869044843,-1800.16,0.00052054,120]
[358242405,1744869044853,-2387.88,0.00052054,120]
[358242406,1744869044862,-500.0,0.00052054,120]
[358242407,1744869044872,-500.0,0.00052054,120]
[358242408,1744869044882,-1776.65,0.00052054,120]
[358242409,1744869044891,-500.0,0.00052054,120]
[358242410,1744869044901,-1555.81,0.00052054,120]
[358242411,1744869044911,-655.72,0.00052054,120]
[358242412,1744869044920,-597.54039191,0.00052054,120]
[358242413,1744869044931,-500.0,0.00052054,120]
[358242414,1744869044941,-1521.31,0.00052054,120]
[358242415,1744869044950,-500.0,0.00052054,30]
[358242416,1744869044960,-1176.36,0.00052054,120]
[358242417,1744869044970,-500.0,0.00052054,120]
[358242418,1744869044980,-6677.6,0.00052054,120]
[358242419,1744869044990,-500.0,0.00052054,120]
[358242420,1744869044999,-551.97,0.00052054,120]
[358242421,1744869045009,-1218.55,0.00052054,120]
[358242422,1744869045019,-555.08,0.00052054,120]
[358242423,1744869045028,-500.0,0.00052054,120]
[358242424,1744869045038,-500.0,0.00052054,120]
[358242425,1744869045047,-1309.67,0.00052054,120]
[358242426,1744869045057,-500.0,0.00052054,120]
[358242427,1744869045067,-568.93,0.00052054,120]
[358242428,1744869045076,-619.92102951,0.00052054,120]
[358242429,1744869045086,-500.0,0.00052054,120]
[358242430,1744869045095,-500.0,0.00052054,120]
[358242431,1744869045105,-500.0,0.00052054,120]
[358242432,1744869045114,-500.0,0.00052054,120]
[358242433,1744869045124,-1000.0,0.00052054,120]
[358242434,1744869045134,-279.45021312,0.00052054,120]
[358242435,1744869045143,-500.0,0.00052054,120]
[358242436,1744869045153,-1287.78,0.00052054,120]
[358242437,1744869045163,-541.29,0.00052054,120]
[358242438,1744869045172,-2094.96,0.00052054,120]
[358242439,1744869045182,-500.0,0.00052054,120]
[358242440,1744869045192,-1308.61,0.00052054,120]
[358242441,1744869045202,-500.0,0.00052054,120]
[358242442,1744869045211,-586.7,0.00052054,120]
[358242443,1744869045221,-500.0,0.00052054,120]
[358242444,1744869045231,-606.35,0.00052054,120]
[358242445,1744869045240,-500.0,0.00052054,120]
[358242446,1744869045252,-500.0,0.00052054,120]
[358242447,1744869045261,-179.20605799,0.00052054,120]
[358242448,1744869045271,-500.0,0.00052054,120]
[358242449,1744869045280,-500.0,0.00052054,120]
[358242450,1744869045295,-500.0,0.00052054,120]
[358242451,1744869045305,-500.0,0.00052054,120]
[358242452,1744869045315,-500.0,0.00052054,120]
[358242453,1744869045324,-500.0,0.00052054,120]
[358242454,1744869045336,-1184.29,0.00052054,120]
[358242455,1744869045347,-500.0,0.00052054,120]
[358242456,1744869045357,-500.0,0.00052054,120]
[358242457,1744869045367,-500.0,0.00052054,120]
[358242458,1744869045377,-1687.67,0.00052054,120]
[358242459,1744869045387,-1788.7,0.00052054,120]
[358242460,1744869045396,-790.3,0.00052054,120]
[358242461,1744869045406,-500.0,0.00052054,120]
[358242462,1744869045416,-636.16,0.00052054,120]
[358242463,1744869045425,-500.0,0.00052054,120]
[358242464,1744869045435,-500.0,0.00052054,120]
[358242465,1744869045445,-500.0,0.00052054,120]
[358242466,1744869045455,-224.215162,0.00052054,120]
[358242467,1744869045464,-500.0,0.00052054,120]
[358242468,1744869045473,-500.0,0.00052054,120]
[358242469,1744869045483,-2235.58,0.00052054,120]
[358242470,1744869045493,-500.0,0.00052054,120]
[358242471,1744869045503,-500.0,0.00052054,120]
[358242472,1744869045513,-1202.47,0.00052054,120]
[358242473,1744869045523,-500.0,0.00052054,120]
[358242474,1744869045534,-500.0,0.00052054,120]
[358242475,1744869045544,-500.0,0.00052054,120]
[358242476,1744869045553,-1142.03,0.00052054,120]
[358242477,1744869045563,-447.10932046,0.00052054,120]
[358242478,1744869045572,-500.0,0.00052054,120]
[358242479,1744869045583,-1054.63,0.00052054,120]
[358242480,1744869045592,-500.0,0.00052054,120]
[358242481,1744869045602,-1462.35,0.00052054,120]
[358242482,1744869045612,-500.0,0.00052054,120]
[358242483,1744869045622,-403.63394611,0.00052054,120]
[358242484,1744869045632,-500.0,0.00052054,120]
[358242485,1744869045642,-500.0,0.00052054,120]
[358242486,1744869045652,-500.0,0.00052054,14]
[358242487,1744869045662,-1405.9,0.00052054,120]
[358242488,1744869045672,-646.45583617,0.00052054,120]
[358242489,1744869045682,-500.0,0.00052054,120]
[358242490,1744869045692,-500.0,0.00052054,120]
[358242491,1744869045702,-1690.61,0.00052054,120]
[358242492,1744869045712,-500.0,0.00052054,120]
[358242493,1744869045722,-500.0,0.00052054,120]
[358242494,1744869045732,-1885.35,0.00052054,120]
[358242495,1744869045743,-500.0,0.00052054,120]
[358242496,1744869045753,-957.9,0.00052054,120]
[358242497,1744869045763,-1228.2,0.00052054,120]
[358242498,1744869045773,-500.0,0.00052054,120]
[358242499,1744869045782,-500.0,0.00052054,120]
[358242500,1744869045792,-500.0,0.00052054,120]
[358242501,1744869045803,-500.0,0.00052054,120]
[358242502,1744869045813,-500.0,0.00052054,120]
[358242503,1744869045824,-622.49,0.00052054,120]
[358242504,1744869045834,-646.09,0.00052054,120]
[358242505,1744869045844,-500.0,0.00052054,120]
[358242506,1744869045854,-500.0,0.00052054,120]
[358242508,1744869045863,-500.0,0.00052054,120]
[358242510,1744869045873,-520.59,0.00052054,120]
[358242512,1744869045883,-500.0,0.00052054,120]
[358242514,1744869045892,-500.0,0.00052054,120]
[358242515,1744869045902,-565.39,0.00052054,120]
[358242517,1744869045911,-500.0,0.00052054,120]
[358242518,1744869045921,-500.0,0.00052054,120]
[358242520,1744869045930,-500.0,0.00052054,120]
[358242521,1744869045939,-500.0,0.00052054,120]
[358242522,1744869045948,-500.0,0.00052054,120]
[358242523,1744869045958,-187.402732,0.00052054,120]
[358242524,1744869045971,-500.0,0.00052054,120]
[358242525,1744869045981,-500.0,0.00052054,120]
[358242526,1744869045990,-1159.12,0.00052054,120]
[358242527,1744869045999,-500.0,0.00052054,120]
[358242528,1744869046009,-1032.38,0.00052054,120]
[358242529,1744869046018,-500.0,0.00052054,14]
[358242530,1744869046028,-500.0,0.00052054,120]
[358242531,1744869046037,-510.76451233,0.00052054,120]
[358242532,1744869046047,-512.51,0.00052054,120]
[358242533,1744869046056,-502.7,0.00052054,120]
[358242534,1744869046066,-500.0,0.00052054,120]
[358242535,1744869046075,-500.0,0.00052054,120]
[358242536,1744869046085,-500.0,0.00052054,120]
[358242537,1744869046094,-500.0,0.00052054,120]
[358242538,1744869046103,-500.0,0.00052054,120]
[358242539,1744869046113,-500.0,0.00052054,120]
[358242540,1744869046123,-378.69633286,0.00052054,120]
[358242541,1744869046132,-500.0,0.00052054,120]
[358242542,1744869046141,-1128.03,0.00052054,120]
[358242543,1744869046151,-503.33,0.00052054,120]
[358242544,1744869046161,-500.0,0.00052054,120]
[358242545,1744869046171,-500.0,0.00052054,120]
[358242546,1744869046180,-500.0,0.00052054,120]
[358242547,1744869046189,-500.0,0.00052054,120]
[358242548,1744869046199,-1290.37,0.00052054,120]
[358242549,1744869046208,-500.0,0.00052054,120]
[358242550,1744869046217,-500.0,0.00052054,120]
[358242551,1744869046227,-500.0,0.00052054,120]
[358242552,1744869046236,-500.0,0.00052054,120]
[358242553,1744869046246,-500.0,0.00052054,120]
[358242554,1744869046259,-500.0,0.00052054,120]
[358242555,1744869046269,-1437.38,0.00052054,120]
[358242556,1744869046278,-875.85,0.00052054,120]
[358242557,1744869046288,-504.57,0.00052054,120]
[358242558,1744869046299,-500.0,0.00052054,120]
[358242559,1744869046308,-2402.24,0.00052054,120]
[358242560,1744869046317,-500.0,0.00052054,120]
[358242561,1744869046327,-500.0,0.00052054,120]
[358242562,1744869046336,-500.0,0.00052054,120]
[358242563,1744869046671,-500.0,0.00052054,120]
[358242564,1744869046683,-500.0,0.00052054,120]
[358242565,1744869046693,-500.0,0.00052054,120]
[358242566,1744869046703,-772.76,0.00052054,120]
[358242567,1744869046712,-500.0,0.00052054,120]
[358242568,1744869046722,-616.22,0.00052054,120]
[358242569,1744869046731,-500.0,0.00052054,120]
[358242570,1744869046740,-500.0,0.00052054,120]
[358242571,1744869046750,-500.0,0.00052054,120]
[358242572,1744869046759,-1664.15,0.00052054,120]
[358242573,1744869046769,-514.98,0.00052054,120]
[358242574,1744869046778,-500.0,0.00052054,120]
[358242575,1744869046787,-864.27,0.00052054,120]
[358242576,1744869046796,-500.0,0.00052054,120]
[358242577,1744869046805,-500.0,0.00052054,120]
[358242578,1744869046815,-705.62,0.00052054,120]
[358242579,1744869046827,-500.0,0.00052054,120]
[358242580,1744869046837,-557.07289585,0.00052054,120]
[358242581,1744869046846,-520.36,0.00052054,120]
[358242582,1744869046855,-590.82,0.00052054,120]
[358242583,1744869046865,-500.0,0.00052054,120]
[358242584,1744869046874,-1912.46,0.00052054,120]
[358242585,1744869046883,-500.0,0.00052054,120]
[358242586,1744869046892,-504.11838068,0.00052054,120]
[358242587,1744869046901,-500.0,0.00052054,120]
[358242588,1744869046911,-500.0,0.00052054,120]
[358242589,1744869046921,-933.7,0.00052054,120]
[358242590,1744869046930,-500.0,0.00052054,120]
[358242591,1744869046939,-500.0,0.00052054,120]
[358242592,1744869046949,-500.0,0.00052054,120]
[358242593,1744869046958,-500.0,0.00052054,120]
[358242594,1744869046967,-1127.02,0.00052054,120]
[358242595,1744869046977,-500.0,0.00052054,120]
[358242596,1744869046986,-500.0,0.00052054,120]
[358242597,1744869046996,-500.0,0.00052054,120]
[358242598,1744869047008,-1385.3,0.00052054,120]
[358242599,1744869047018,-500.0,0.00052054,120]
[358242600,1744869047027,-500.0,0.00052054,120]
[358242601,1744869047037,-500.0,0.00052054,120]
[358242602,1744869047047,-571.85,0.00052054,120]
[358242603,1744869047056,-500.0,0.00052054,120]
[358242604,1744869047065,-500.0,0.00052054,120]
[358242605,1744869047075,-500.0,0.00052054,120]
[358242606,1744869047084,-500.0,0.00052054,120]
[358242607,1744869047094,-500.0,0.00052054,120]
[358242608,1744869047103,-500.0,0.00052054,120]
[358242609,1744869047112,-500.0,0.00052054,120]
[358242610,1744869047122,-500.0,0.00052054,120]
[358242611,1744869047131,-500.0,0.00052054,120]
[358242612,1744869047141,-500.0,0.00052054,120]
[358242613,1744869047150,-558.48,0.00052054,120]
[358242614,1744869047160,-1396.35,0.00052054,120]
[358242615,1744869047169,-500.0,0.00052054,120]
[358242616,1744869047179,-1525.69,0.00052054,120]
[358242617,1744869047188,-500.0,0.00052054,120]
[358242618,1744869047198,-500.0,0.00052054,120]
[358242619,1744869047207,-1309.88,0.00052054,120]
[358242620,1744869047216,-500.0,0.00052054,120]
[358242621,1744869047226,-553.59,0.00052054,120]
[358242622,1744869047236,-500.0,0.00052054,120]
[358242623,1744869047246,-500.0,0.00052054,120]
[358242624,1744869047260,-500.0,0.00052054,120]
[358242625,1744869047270,-500.0,0.00052054,120]